Cogmind - Beta 15 @@@ ROGUE MODE // 2025.07.24 @ 13:34:41 Player: Brrz Result: Destroyed by G-34 Mercenary with Small Laser Performance ------------- Evolutions (0) 0 Regions Visited (1) 200 Robots Destroyed (5) 25 Value Destroyed (206) 206 Prototype IDs (0) 0 Alien Tech Used (0) 0 Bonus (0) 0 TOTAL SCORE: 431 Bonus ------- None Cogmind --------- Core Integrity 0/250 Matter 245/300 Energy 79/100 System Corruption 0% Temperature Cool (68) Movement Core (50) Location -10/Materials Parts ------- > --- POWER (1) -------- (None) > --- PROPULSION (2) --- (None) > --- UTILITY (2) ------ Terrain Scanner > --- WEAPON (2) ------- Medium Laser > --- INVENTORY (5) ---- Medium Storage Unit Signal Interpreter Small Laser Rocket Launcher Plasma Cutter Peak State ------------ > --- POWER ------------ Light Ion Engine > --- PROPULSION ------- Wheel Wheel > --- UTILITY ---------- Sensor Array Terrain Scanner > --- WEAPON ----------- EM Pulse Gun Plasma Cutter > --- INVENTORY -------- Signal Interpreter Medium Laser Small Laser Rocket Launcher [Rating: 8] Favorites ----------- Power Light Ion Engine Engine Light Ion Engine Propulsion Wheel Wheel Wheel Utility Terrain Scanner Device Terrain Scanner Weapon Medium Laser Energy Gun Medium Laser Special Weapon Plasma Cutter Build | -11 -10 ------- Run | Yrd Mat Slots Evolved . | . . Power . | . . Propulsion . | . . Utility . | . . Weapon . | . . Parts Attached 9 | 5 4 Power 1 | 1 . Engine 1 | 1 . Core . | . . Reactor . | . . Propulsion 2 | 2 . Treads . | . . Leg . | . . Wheel 2 | 2 . Hover . | . . Flight . | . . Utility 2 | . 2 Device 2 | . 2 Storage . | . . Processor . | . . Hackware . | . . Protection . | . . Artifact . | . . Weapon 4 | 2 2 Energy Gun 3 | 2 1 Energy Cannon . | . . Ballistic Gun . | . . Ballistic Cannon . | . . Launcher . | . . Special Weapon 1 | . 1 Impact Weapon . | . . Slashing Weapon . | . . Piercing Weapon . | . . Special Melee Weapon . | . . Unidentified Prototypes . | . . Parts Lost 5 | . 5 Power 1 | . 1 Propulsion 2 | . 2 Utility 1 | . 1 Weapon 1 | . 1 Highest Loss Streak 3 | . 3 To Critical Strikes . | . . Average Backups 3 | . 3 Power . | . . Propulsion . | . . Utility . | . . Weapon 1 | . 2 Tool/Special . | . . Unused Backups 4 | . 4 Power . | . . Propulsion . | . . Utility 2 | . 2 Weapon 2 | . 2 Tool/Special . | . . Average Slot Usage (%) 84 | . 84 Engine 13 | . 13 Wheel 24 | . 24 Device 17 | . 17 Energy Gun 24 | . 24 Special Weapon 2 | . 2 Peak Build Rating 8 | 5 8 Average Rating 5 | 3 6 On Entrance 2 | . 5 Naked Turns . | . . Heaviest Build 9 | 6 9 Greatest Support 20 | 20 20 Greatest Overweight (x) 2 | . 2 Average Overweight (x) . | . . Largest Inventory Capacity 5 | 5 5 Average Capacity 5 | 5 5 Most Carried 5 | 2 5 Average Carried 3 | . 3 Final Capacity 5 | 5 5 Final Carried 5 | 1 5 Class Distribution -------------------- 100% | Mutant Dominant Class ---------------- Mutant | -10/Materials Resources | -11 -10 ----------- Run | Yrd Mat Matter Collected 250 | 250 . Remotely . | . . Salvage Created 239 | 49 190 Parts 8 | 1 7 Haulers Intercepted . | . . Recyclers Shooed . | . . Parts Field Recycled . | . . Retrieved Matter . | . . Parts Self-Destructed . | . . Prevented . | . . Kills | -11 -10 ------- Run | Yrd Mat Combat Hostiles Destroyed 5 | 1 4 Guns 5 | 1 4 Classes Destroyed 1 | 1 . Grunt 5 | 1 4 Best Kill Streak 2 | 1 2 Combat Bots Only 2 | 1 2 Max Kills in Single Turn 1 | 1 1 Gunslinging . | . . Exploded . | . . Melee . | . . Uniques/NPCs Destroyed . | . . Combat | -11 -10 -------- Run | Yrd Mat Hostile Shots Fired 55 | 5 50 Missed 12 | . 12 Hits 43 | 5 38 Projectile 43 | 5 38 Damage Taken 580 | 57 523 Core 254 | 12 242 Absorbed by Shields . | . . Core Remaining (%) 95 | 95 . Volleys Fired 51 | 5 46 Largest 2 | 2 2 Hottest 90 | 90 90 Shots Fired 77 | 10 67 Gun 72 | 10 62 Cannon . | . . Launcher . | . . Special 5 | . 5 Kinetic . | . . Thermal 54 | 10 44 Explosive . | . . Electromagnetic 23 | . 23 Robot Hit Streak 8 | 8 6 Robot Miss Streak 2 | 1 2 Penetration Max . | . . Secondary Targets 1 | . 1 Max Gunslinging Chain 1 | . 1 Shots Hit Robots 39 | 8 31 Core Hits 13 | 2 11 Critical Kills . | . . Critical Parts Destroyed . | . . Critical Strikes 3 | 1 2 Burn 3 | 1 2 Melee Attacks . | . . Impact . | . . Slashing . | . . Piercing . | . . Sneak Attacks . | . . Combat Hostiles . | . . Follow-up Attacks . | . . Damage Inflicted 603 | 106 497 Guns 529 | 106 423 Cannons . | . . Explosions 74 | . 74 Melee . | . . Ramming . | . . Kinetic . | . . Thermal 480 | 106 374 Explosive . | . . Electromagnetic 123 | . 123 Impact . | . . Slashing . | . . Piercing . | . . Highest Corruption . | . . Average Corruption . | . . Corruption Purged . | . . Corruption Blocked . | . . Overload Shots . | . . Overflow Damage . | . . Projectiles . | . . Explosions . | . . Melee . | . . Knockbacks . | . . Impact . | . . Kinetic . | . . Secondary . | . . Self-Inflicted Damage 56 | . 56 Shots 1 | . 1 Rammed . | . . Targets Rammed . | . . Kicked . | . . Crushed . | . . Highest Temperature 379 | 180 379 Average Temperature 103 | 109 102 Received Heat Transfer 297 | 30 267 Effects 2 | . 2 Shutdowns 1 | . 1 Short Circuit 1 | . 1 Siege Activations . | . . Martial Activations . | . . Shielding Activations . | . . Robots Disrupted . | . . Combat Hostiles . | . . Robots Corrupted . | . . Combat Hostiles . | . . Parts Fried . | . . Impact Corruptions . | . . Robots Melted . | . . Combat Hostiles . | . . Parts Melted 2 | 1 1 Heat Transferred 1483 | 347 1136 Parts Sabotaged . | . . Parts Stolen . | . . Parts Stripped . | . . Power Chain Reactions 1 | . 1 Alert | -11 -10 ------- Run | Yrd Mat Maximum Alert Level . | . . Low Security (%) 100 | 100 100 Level 1 . | . . Level 2 . | . . Level 3 . | . . Level 4 . | . . Level 5 . | . . High Security . | . . Max Security . | . . Peak Influence 63 | 20 63 Initial 13 | . 13 Average 8 | 1 9 Influence Increases 186 | 20 166 Destroy 0b10 Robot/C 100 | 20 80 Destroy Leader 20 | . 20 Disable Machine 15 | . 15 Destroy Structure 6 | . 6 Partial Spotted 15 | . 15 Lose Combat Pursuer 30 | . 30 Influence Decreases 156 | . 156 Entered New Map 7 | . 7 Time Decay 100 | . 100 Lost Part 49 | . 49 Squads Dispatched 1 | . 1 Investigation 1 | . 1 Extermination . | . . Reinforcement . | . . Assault . | . . Garrison . | . . Intercept . | . . Searches Triggered . | . . Construction Impeded . | . . Haulers Reinforced . | . . Active Scanning Responses . | . . Cargo Convoy Interrupts . | . . Stealth | -11 -10 --------- Run | Yrd Mat Distress Signals 2 | . 2 Communications Jammed . | . . Distress Signals . | . . Times Spotted 11 | 1 10 Peak Tracking Total 4 | 1 4 Tactical Retreats 2 | . 2 Traps | -11 -10 ------- Run | Yrd Mat Traps Triggered . | . . Indirectly . | . . Trap Hack Attempts . | . . Triggered . | . . Disarmed . | . . Reprogrammed . | . . Reused . | . . Traps Extracted . | . . Installed . | . . Triggered . | . . Machines | -11 -10 ---------- Run | Yrd Mat Machines Disabled 1 | . 1 Max in Single Turn 1 | . 1 Machines Repaired . | . . Machines Dismantled 1 | . 1 Machines Sabotaged . | . . Overloaded Fab Kills . | . . Hacking | -11 -10 --------- Run | Yrd Mat Machines Accessed 1 | . 1 Terminals 1 | . 1 Fabricators . | . . Repair Stations . | . . Recycling Units . | . . Scanalyzers . | . . Garrison Access . | . . Total Hacks 2 | . 2 Successful . | . . Failed 2 | . 2 Catastrophic . | . . Database Lockouts . | . . Manual 2 | . 2 Terminals 2 | . 2 Fabricators . | . . Repair Stations . | . . Recycling Units . | . . Scanalyzers . | . . Garrison Access . | . . Terminal Hacks . | . . Fabricator Hacks . | . . Repair Station Hacks . | . . Recycling Unit Hacks . | . . Scanalyzer . | . . Garrison Access Hacks . | . . Unauthorized Hacks . | . . Terminals . | . . Fabricators . | . . Repair Stations . | . . Recycling Units . | . . Scanalyzers . | . . Garrison Access . | . . Data Cores Recovered . | . . Used . | . . Hacking Detections 1 | . 1 Full Trace Events 1 | . 1 Feedback Events . | . . Feedback Blocked . | . . Robot Schematics Acquired . | . . Robots Built . | . . Authchips . | . . Time . | . . Total Robot Build Rating . | . . Part Schematics Acquired . | . . Parts Built . | . . Authchips . | . . Time . | . . Total Part Build Rating . | . . Parts Repaired . | . . Time . | . . Parts Recycled . | . . Recycled Matter . | . . Retrieved Matter . | . . Retrieved Components . | . . Parts Scanalyzed . | . . Part Schematics Acquired . | . . Parts Damaged . | . . Bothacking | -11 -10 ------------ Run | Yrd Mat Used RIF Installer . | . . Robots Hacked . | . . Non-combat . | . . Combat . | . . Robot Hacks Applied . | . . Relay Couplers Released . | . . Fabnet Peak Effective % . | . . Robots Rewired . | . . Allies Hacked . | . . Hacks Repelled . | . . Allies | -11 -10 -------- Run | Yrd Mat Total Allies . | . . Largest Group . | . . Highest-Rated Group . | . . Highest-Rated Ally . | . . Total Orders . | . . Ally Attacks . | . . Total Damage . | . . Kills . | . . Allies Corrupted . | . . Allies Melted . | . . Intel | -11 -10 ------- Run | Yrd Mat Active Infowar (turns) 588 | . 588 Sensors 230 | . 230 Terrain 588 | . 588 Robot Analysis Total . | . . Derelict Logs Recovered . | . . Drone Launches . | . . Drone Recoveries . | . . Exploration | -11 -10 ------------- Run | Yrd Mat Turns Passed 712 | 72 640 Spaces Moved 327 | 64 263 Core 39 | 17 22 Treads . | . . Legs . | . . Wheels 288 | 47 241 Hover . | . . Flight . | . . Fastest Speed 50 | 50 80 Average Speed 83 | 72 85 Slowest Speed 150 | 80 150 Overloaded Moves . | . . Propulsion Burnouts . | . . Robots Hopped . | . . Potential Cave-ins . | . . Cave-ins Triggered . | . . Exploration Rate (%) 23 | 8 39 Regions Visited 1 Branch Regions . Pre-discovered Areas . | . . Known Exits Taken . | . . Unknown Exits Taken 1 | 1 . Scrap Searched . | . . Spaces Dug . | . . Terrain Destroyed 6 | . 6 Melee . | . . Projectile . | . . AOE 6 | . 6 Terrain Rammed . | . . Walls Destroyed . | . . Machines Disabled . | . . Actions | -11 -10 --------- Run | Yrd Mat Total 675 | 79 596 Wait 267 | . 267 Move 326 | 63 263 Hop . | . . Pick Up 13 | 6 7 Fast Attach . | . . Attach 7 | 5 2 Detach . | . . Swap 6 | . 6 Drop 1 | . 1 Fire 51 | 5 46 Melee . | . . Ram . | . . Kick . | . . Crush . | . . Escape Stasis . | . . Rewire . | . . Trap . | . . Miscellaneous 4 | . 4 Route ------- -11/Scrapyard -10/Materials (discovered 1 exit: [*Mat]) History --------- Turn | Location | Event 2 | -11/Scrapyard | Met Revision 17 51 | -11/Scrapyard | Discovered new exit (range 8) 73 | -11/Scrapyard | Entered Materials 313 | -10/Materials | Build established: Mutant 596 | -10/Materials | Discovered new exit (range 3) 635 | -10/Materials | Core integrity fell below 50% 685 | -10/Materials | Lost 3 parts (2n1w) 707 | -10/Materials | Core integrity fell below 20% 713 | -10/Materials | Destroyed by G-34 Mercenary with Small Laser Last Messages --------------- 00654_ Wheel broken. 00654_ Overheating: Short circuit. 00654_ Broken Wheel destroyed. When attempting to attach a part directly from the ground, if there is no auto-replacement effect you can quickly repeat the command a second time to attempt a manual swap. 00682_ Heat Sink melted. 00682_ G-34 Mercenary destroyed. 00686_ K-01 Serf collects debris. 00687_ R-06 Scavenger collects Aluminum Leg. 00690_ K-01 Serf collects debris. 00690_ R-06 Scavenger collects Sml. Laser. 00693_ K-01 Serf collects debris. 00694_ W-16 Scout sends out distress signal. 00698_ K-01 Serf collects debris. 00702_ Lgt. Ion Engine destroyed. 00704_ Sensor Array destroyed. 00705_ G-47 Trooper suffers critical hit (Burn). 00711_ G-47 Trooper heat damages Particle Gun, Aluminum Leg. 00713_ G-47 Trooper destroyed. Map ----- +----------------------------------------------------+ | | | | | | | | | | | | | | | | | | | | | | | | | | | ?????????????????????????????#?#???????#?????????? | | ???????????????????????????????##????????????????? | | ????????????????????????????????????????##???????? | | ????????????????????########???????#??? #???????? | | ??????????????????#?# ######?? ? #???????? | | ##????#?????????????? # ####### ###??????? | | ###???????????????#?? + #?#????? | | !#?????????######??? "T" # ???????? | | #?????????# #??#???"""?# *!! #?????????? | | #?????????# < #???? ? ?# !!! # "T"????? | | ########### #????###+### = !!! k #??? | | ###### g #??"??????? | | +############ %=@ %^ #??"?? ???? | | #???#??# ######/###########+#####?????????? | | #??????# #??? ????# =[ #?????????? | | #??????### #??# """" ???# """ #?????????? | | #???##???# #??# """" ??# """ #?????????? | | """ #????????# #??# """" #?# """ #???#?????? | | """ #?#???#??# #??# ### """ ! #?????????? | | """ #????????# ##?# """" ### """ #?????????? | | #????????# #??# """???#?# "Y" #????#????? | | ######????????? #??#?????????# """ #?#???????? | | #?????????????? ??#?????? ???###########??#??????? | | ??????????????? ???#?????????????????????????????? | | ??????????????? ?????????????????????????????????? | | ??????????????? ????????????? ????????????#??????? | | ??????????????? ?????????????????????????????????? | | ??????????????? ?????????????????????????????????? | | ?????????????????????????????????????????????????? | | ?????????????????????????????????????????????????? | | #????????????????????????????????????????????????? | | #####????????????????????????????????????????????? | | ???????????????????????????????????????????? | | ???????????????????????????????????????????? | | ==!???????????????????????????????????????????? | | =!????????????????????????????????????????????? | | =?????????????????????????????????????????????? | +----------------------------------------------------+ Best States ------------- Heat Dissipation 25 Energy Generation 10 Energy Capacity 125 Matter Stores 300 Matter Capacity 300 Sight Range 16 Robot Scan Range 14 Terrain Scan Range 14 Terrain Scan Density 10 Evasion (%) 50 Item Schematics ----------------- None Robot Schematics ------------------ None Fabricated ------------ Nothing Repaired ---------- Nothing Alien Tech Used ----------------- None Achievements -------------- None Challenges ------------ None Game ------ Seed ShockUtilityLance Manual? 0 Play Time 00:06:10 Cumulative 0.7 hours Start 2025.07.24 @ 13:29:14 End 2025.07.24 @ 13:34:41 Sessions 1 Manual Loads 0 Difficulty Rogue Special Mode None Game No. 3 Rogue 3 Adventurer 0 Explorer 0 Win Type - Total 0 Types 0/0/0/0/0/0/0/0/0/0 Lore% 0 Gallery% 3 Achievement% 4 Wizard Run 0 Options --------- Layout 0 ASCII 0 Keyboard 0 Movement Mouse Keybinds 0 Fullscreen 1 Font 24/Smallcaps Map View 76x50 Zoom Use 0% Tactical HUD 1 Map Filters NONE Filters NONE Steam 1 RUN: 7115ecd4-436e-49f2-b400-3935426bc591